[Event "Early-Titled-Tuesday-Blitz-October-17-2023"]
[Site "Chess.com"]
[Date "2023.10.17"]
[Round "5"]
[White "attack2mateU"]
[Black "MasterKroket"]
[Result "1-0"]
[WhiteElo "2732"]
[BlackElo "2546"]
[TimeControl "180+1"]
[EndTime "8:57:02 PDT"]
[Termination "attack2mateU won by checkmate"]

1. e4 {[%clk 0:03:00.9]} 1... e5 {[%clk 0:02:57.4]} 2. Nf3 {[%clk 0:03:00.3]}
2... Nc6 {[%clk 0:02:53.9]} 3. Bc4 {[%clk 0:03:00.9]} 3... Bc5 {[%clk
0:02:52.8]} 4. c3 {[%clk 0:03:00.8]} 4... Nf6 {[%clk 0:02:51.8]} 5. d3 {[%clk
0:03:01.4]} 5... h6 {[%clk 0:02:49.1]} 6. O-O {[%clk 0:03:01.4]} 6... a6 {[%clk
0:02:47.6]} 7. Re1 {[%clk 0:03:00.8]} 7... O-O {[%clk 0:02:41]} 8. d4 {[%clk
0:02:57.3]} 8... exd4 {[%clk 0:02:38.1]} 9. cxd4 {[%clk 0:02:58.2]} 9... Bb4
{[%clk 0:02:38.6]} 10. Nc3 {[%clk 0:02:58]} 10... Bxc3 {[%clk 0:02:30]} 11. bxc3
{[%clk 0:02:57.9]} 11... Nxe4 {[%clk 0:02:24.7]} 12. d5 {[%clk 0:02:51.8]} 12...
Nd6 {[%clk 0:02:24.9]} 13. dxc6 {[%clk 0:02:34.1]} 13... Nxc4 {[%clk 0:02:24.6]}
14. Qd5 {[%clk 0:02:34.8]} 14... Nd6 {[%clk 0:02:10.3]} 15. cxd7 {[%clk
0:01:41.1]} 15... Bxd7 {[%clk 0:02:06.9]} 16. Ba3 {[%clk 0:01:32.8]} 16... Bc6
{[%clk 0:02:06.1]} 17. Qh5 {[%clk 0:01:28.8]} 17... Bxf3 {[%clk 0:02:00.8]} 18.
Qxf3 {[%clk 0:01:29.7]} 18... Re8 {[%clk 0:01:57.6]} 19. Bxd6 {[%clk 0:01:16.6]}
19... Qxd6 {[%clk 0:01:53.7]} 20. Qxb7 {[%clk 0:01:16.5]} 20... Qc5 {[%clk
0:01:47.9]} 21. g3 {[%clk 0:01:05.7]} 21... Qxc3 {[%clk 0:01:31.2]} 22. Rec1
{[%clk 0:01:05.3]} 22... Qd4 {[%clk 0:01:25]} 23. Qxc7 {[%clk 0:00:34]} 23...
Re2 {[%clk 0:01:15.3]} 24. Qc5 {[%clk 0:00:34.3]} 24... Qxc5 {[%clk 0:01:02.4]}
25. Rxc5 {[%clk 0:00:35.2]} 25... Rb8 {[%clk 0:01:02.6]} 26. a4 {[%clk
0:00:23.8]} 26... Rbb2 {[%clk 0:01:03.1]} 27. Rf5 {[%clk 0:00:18.8]} 27... f6
{[%clk 0:00:57.3]} 28. Rc1 {[%clk 0:00:14.6]} 28... Kh7 {[%clk 0:00:56.3]} 29.
Rc6 {[%clk 0:00:12.6]} 29... a5 {[%clk 0:00:54.6]} 30. Rcc5 {[%clk 0:00:11.3]}
30... Ra2 {[%clk 0:00:51.3]} 31. Rxa5 {[%clk 0:00:10.6]} 31... Re4 {[%clk
0:00:51.2]} 32. Rf4 {[%clk 0:00:10.9]} 32... Rxf4 {[%clk 0:00:51.2]} 33. gxf4
{[%clk 0:00:11.8]} 33... Kg6 {[%clk 0:00:49.6]} 34. Kg2 {[%clk 0:00:11.3]} 34...
Ra3 {[%clk 0:00:49.6]} 35. h4 {[%clk 0:00:10.1]} 35... h5 {[%clk 0:00:49.1]} 36.
f5+ {[%clk 0:00:09.6]} 36... Kh6 {[%clk 0:00:49.3]} 37. f3 {[%clk 0:00:09.5]}
37... Kh7 {[%clk 0:00:49.3]} 38. Ra8 {[%clk 0:00:09.4]} 38... Kh6 {[%clk
0:00:45.8]} 39. Rh8# {[%clk 0:00:08.6]} 1-0

[Event "Early-Titled-Tuesday-Blitz-October-17-2023"]
[Site "Chess.com"]
[Date "2023.10.17"]
[Round "5"]
[White "GaiozNigalidze"]
[Black "venturov"]
[Result "1/2-1/2"]
[WhiteElo "2710"]
[BlackElo "2462"]
[TimeControl "180+1"]
[EndTime "8:57:02 PDT"]
[Termination "Game drawn by repetition"]

1. e4 {[%clk 0:03:00.9]} 1... c5 {[%clk 0:02:59.9]} 2. h4 {[%clk 0:03:00.9]}
2... Nc6 {[%clk 0:02:58.6]} 3. a4 {[%clk 0:03:01.1]} 3... e6 {[%clk 0:02:58.5]}
4. Na3 {[%clk 0:03:01.3]} 4... d5 {[%clk 0:02:58.3]} 5. exd5 {[%clk 0:03:01.6]}
5... exd5 {[%clk 0:02:58.9]} 6. Bb5 {[%clk 0:03:00]} 6... Nf6 {[%clk 0:02:58.1]}
7. Nf3 {[%clk 0:02:58.6]} 7... Bd6 {[%clk 0:02:57.7]} 8. d4 {[%clk 0:02:57]}
8... c4 {[%clk 0:02:57.1]} 9. Ne5 {[%clk 0:02:36.3]} 9... O-O {[%clk 0:02:47.4]}
10. Bxc6 {[%clk 0:02:21.6]} 10... bxc6 {[%clk 0:02:48.3]} 11. Bf4 {[%clk
0:02:20.8]} 11... Re8 {[%clk 0:02:40]} 12. O-O {[%clk 0:02:12.4]} 12... Qc7
{[%clk 0:02:09.7]} 13. Re1 {[%clk 0:01:43.3]} 13... Bf5 {[%clk 0:01:53.8]} 14.
Qf3 {[%clk 0:01:29.3]} 14... Be4 {[%clk 0:01:53.8]} 15. Qh3 {[%clk 0:01:23.7]}
15... h6 {[%clk 0:01:42.4]} 16. f3 {[%clk 0:01:18.9]} 16... Bh7 {[%clk
0:01:41.8]} 17. Re3 {[%clk 0:00:54.2]} 17... Nd7 {[%clk 0:01:34.1]} 18. Rae1
{[%clk 0:00:43.7]} 18... Nxe5 {[%clk 0:01:33.5]} 19. Bxe5 {[%clk 0:00:43]} 19...
Bxe5 {[%clk 0:01:33.3]} 20. Rxe5 {[%clk 0:00:42.7]} 20... Rxe5 {[%clk
0:01:33.6]} 21. Rxe5 {[%clk 0:00:42.4]} 21... Kf8 {[%clk 0:01:31]} 22. Qg3
{[%clk 0:00:40.2]} 22... Qd7 {[%clk 0:01:27.1]} 23. b4 {[%clk 0:00:28.6]} 23...
a6 {[%clk 0:01:11.7]} 24. c3 {[%clk 0:00:26.7]} 24... f6 {[%clk 0:01:06.2]} 25.
Re1 {[%clk 0:00:24.7]} 25... Kf7 {[%clk 0:01:02.1]} 26. Nb1 {[%clk 0:00:17.6]}
26... Bxb1 {[%clk 0:01:01.8]} 27. Rxb1 {[%clk 0:00:18.5]} 27... Re8 {[%clk
0:01:01.4]} 28. Re1 {[%clk 0:00:18.7]} 28... Rxe1+ {[%clk 0:00:58]} 29. Qxe1
{[%clk 0:00:19.6]} 29... Qe6 {[%clk 0:00:57]} 30. Qxe6+ {[%clk 0:00:18.2]} 30...
Kxe6 {[%clk 0:00:57.4]} 31. Kf2 {[%clk 0:00:17.3]} 31... g5 {[%clk 0:00:56.7]}
32. hxg5 {[%clk 0:00:15.2]} 32... hxg5 {[%clk 0:00:56.9]} 33. g4 {[%clk
0:00:15.2]} 33... f5 {[%clk 0:00:56.5]} 34. Ke2 {[%clk 0:00:14.7]} 34... f4
{[%clk 0:00:55.6]} 35. Kd2 {[%clk 0:00:14.9]} 35... Kd6 {[%clk 0:00:56]} 36. Kc2
{[%clk 0:00:15.4]} 36... Kc7 {[%clk 0:00:56.5]} 37. Kb2 {[%clk 0:00:15.4]} 37...
Kb6 {[%clk 0:00:57]} 38. a5+ {[%clk 0:00:12.4]} 38... Kb7 {[%clk 0:00:55.2]} 39.
Ka2 {[%clk 0:00:12.8]} 39... Kc7 {[%clk 0:00:55.5]} 40. Kb2 {[%clk 0:00:13.3]}
40... Kd6 {[%clk 0:00:55.9]} 41. Ka2 {[%clk 0:00:13.8]} 41... Kd7 {[%clk
0:00:54.2]} 42. Kb2 {[%clk 0:00:14.3]} 42... Kd6 {[%clk 0:00:54.7]} 43. Ka2
{[%clk 0:00:14.9]} 43... Kd7 {[%clk 0:00:55.2]} 44. Kb2 {[%clk 0:00:15.4]} 44...
Kd6 {[%clk 0:00:55.8]} 1/2-1/2

[Event "Early-Titled-Tuesday-Blitz-October-17-2023"]
[Site "Chess.com"]
[Date "2023.10.17"]
[Round "5"]
[White "Gravity_Chess"]
[Black "Jospem"]
[Result "0-1"]
[WhiteElo "2860"]
[BlackElo "3112"]
[TimeControl "180+1"]
[EndTime "8:57:04 PDT"]
[Termination "Jospem won by resignation"]

1. b3 {[%clk 0:03:00.9]} 1... d5 {[%clk 0:02:57.9]} 2. Bb2 {[%clk 0:03:00.8]}
2... Nf6 {[%clk 0:02:58.8]} 3. Nf3 {[%clk 0:03:00.8]} 3... Bf5 {[%clk
0:02:59.1]} 4. d3 {[%clk 0:03:00.8]} 4... e6 {[%clk 0:02:59.4]} 5. Nbd2 {[%clk
0:03:01.3]} 5... h6 {[%clk 0:02:59.6]} 6. h3 {[%clk 0:03:01.2]} 6... Bh7 {[%clk
0:02:59.6]} 7. g4 {[%clk 0:03:01.7]} 7... c5 {[%clk 0:02:59.7]} 8. Rg1 {[%clk
0:03:02.2]} 8... Nc6 {[%clk 0:02:59.7]} 9. h4 {[%clk 0:03:02.9]} 9... d4 {[%clk
0:02:59.6]} 10. e4 {[%clk 0:02:47.7]} 10... Nd7 {[%clk 0:02:54.8]} 11. a4 {[%clk
0:02:40.5]} 11... a6 {[%clk 0:02:51.2]} 12. g5 {[%clk 0:02:01.9]} 12... Bg6
{[%clk 0:02:50.9]} 13. Be2 {[%clk 0:01:51.6]} 13... hxg5 {[%clk 0:02:49.9]} 14.
hxg5 {[%clk 0:01:51.7]} 14... Qc7 {[%clk 0:02:46.4]} 15. Nc4 {[%clk 0:01:49.8]}
15... b6 {[%clk 0:02:42.1]} 16. Qd2 {[%clk 0:01:42.2]} 16... Rb8 {[%clk
0:02:41.9]} 17. Na3 {[%clk 0:00:30.6]} 17... Bd6 {[%clk 0:02:40.1]} 18. Bc1
{[%clk 0:00:20.2]} 18... b5 {[%clk 0:02:40.1]} 19. axb5 {[%clk 0:00:21.1]} 19...
axb5 {[%clk 0:02:40.8]} 20. Kf1 {[%clk 0:00:19.8]} 20... Ke7 {[%clk 0:02:38.4]}
21. Qe1 {[%clk 0:00:17.1]} 21... Qb6 {[%clk 0:02:24.6]} 22. Nb1 {[%clk
0:00:13.2]} 22... Rh3 {[%clk 0:02:20.6]} 23. Nfd2 {[%clk 0:00:09.6]} 23... Rbh8
{[%clk 0:02:19]} 24. Bg4 {[%clk 0:00:09.9]} 24... Rh1 {[%clk 0:02:14.7]} 25. Nf3
{[%clk 0:00:10.3]} 25... Rxg1+ {[%clk 0:02:14.4]} 26. Nxg1 {[%clk 0:00:11.2]}
26... Nb4 {[%clk 0:02:09.2]} 27. Na3 {[%clk 0:00:11.1]} 27... Ne5 {[%clk
0:02:07.2]} 28. Be2 {[%clk 0:00:07.3]} 28... Qb8 {[%clk 0:02:03.8]} 29. f4
{[%clk 0:00:06.2]} 29... Nec6 {[%clk 0:02:04.1]} 30. Qf2 {[%clk 0:00:05.6]}
30... f6 {[%clk 0:01:58.4]} 31. gxf6+ {[%clk 0:00:05.1]} 31... gxf6 {[%clk
0:01:59.3]} 32. Bd2 {[%clk 0:00:05.6]} 32... Bf7 {[%clk 0:01:58.7]} 33. Bxb4
{[%clk 0:00:05.9]} 33... Nxb4 {[%clk 0:01:56.4]} 34. e5 {[%clk 0:00:03.9]} 34...
fxe5 {[%clk 0:01:57.3]} 35. fxe5 {[%clk 0:00:04.8]} 35... Bxe5 {[%clk
0:01:52.5]} 36. Nxb5 {[%clk 0:00:05.5]} 36... Nc6 {[%clk 0:01:46.3]} 37. Na3
{[%clk 0:00:04.6]} 37... Bg3 {[%clk 0:01:38]} 38. Qg2 {[%clk 0:00:03.2]} 38...
Rf8 {[%clk 0:01:33.7]} 39. Nf3 {[%clk 0:00:02.8]} 39... Nb4 {[%clk 0:01:29.3]}
40. Nc4 {[%clk 0:00:02.2]} 40... Nd5 {[%clk 0:01:30.1]} 41. Kg1 {[%clk
0:00:01.8]} 41... Rg8 {[%clk 0:01:29.7]} 42. Kf1 {[%clk 0:00:01.2]} 42... Be8
{[%clk 0:01:28.8]} 43. Qh3 {[%clk 0:00:01.7]} 43... Rg7 {[%clk 0:01:25.6]} 44.
Qg2 {[%clk 0:00:01.2]} 44... Bb5 {[%clk 0:01:25.8]} 45. Qh3 {[%clk 0:00:01.6]}
45... Bxc4 {[%clk 0:01:25.5]} 46. bxc4 {[%clk 0:00:01.9]} 46... Ne3+ {[%clk
0:01:26.1]} 47. Kg1 {[%clk 0:00:02.8]} 47... Nf5 {[%clk 0:01:17.4]} 48. Kh1
{[%clk 0:00:02.8]} 48... Bf2 {[%clk 0:01:13.1]} 49. Rb1 {[%clk 0:00:02.3]} 49...
Ng3+ {[%clk 0:01:13.3]} 0-1

[Event "Early-Titled-Tuesday-Blitz-October-17-2023"]
[Site "Chess.com"]
[Date "2023.10.17"]
[Round "5"]
[White "PeshkaCh"]
[Black "mishanick"]
[Result "0-1"]
[WhiteElo "2812"]
[BlackElo "3015"]
[TimeControl "180+1"]
[EndTime "8:57:04 PDT"]
[Termination "mishanick won by checkmate"]

1. Nf3 {[%clk 0:03:00.9]} 1... d5 {[%clk 0:02:59.5]} 2. d4 {[%clk 0:03:00.8]}
2... Nf6 {[%clk 0:02:59.9]} 3. c4 {[%clk 0:03:01]} 3... e6 {[%clk 0:03:00.5]} 4.
Nc3 {[%clk 0:03:00.9]} 4... Nbd7 {[%clk 0:03:00.9]} 5. cxd5 {[%clk 0:03:01.1]}
5... exd5 {[%clk 0:03:01.8]} 6. Bg5 {[%clk 0:03:01.5]} 6... c6 {[%clk
0:03:01.4]} 7. e3 {[%clk 0:03:02.1]} 7... h6 {[%clk 0:03:02.1]} 8. Bh4 {[%clk
0:03:02.3]} 8... g5 {[%clk 0:03:02.9]} 9. Bg3 {[%clk 0:03:00.7]} 9... Nh5 {[%clk
0:03:03.6]} 10. Bd3 {[%clk 0:03:00.4]} 10... Nxg3 {[%clk 0:03:04]} 11. hxg3
{[%clk 0:03:01.3]} 11... Nb6 {[%clk 0:03:04.2]} 12. Qc2 {[%clk 0:03:01.3]} 12...
Be6 {[%clk 0:03:04.9]} 13. Bf5 {[%clk 0:02:59.9]} 13... Qf6 {[%clk 0:02:58.4]}
14. Bxe6 {[%clk 0:02:59.8]} 14... fxe6 {[%clk 0:02:59.3]} 15. Ne5 {[%clk
0:02:57.5]} 15... Bd6 {[%clk 0:02:58.2]} 16. f4 {[%clk 0:02:55.5]} 16... O-O-O
{[%clk 0:02:55.5]} 17. O-O-O {[%clk 0:02:54.9]} 17... Kb8 {[%clk 0:02:54.4]} 18.
Rdf1 {[%clk 0:02:53.9]} 18... Qg7 {[%clk 0:02:40.1]} 19. Rh3 {[%clk 0:02:32.4]}
19... Rc8 {[%clk 0:02:35.7]} 20. Kb1 {[%clk 0:02:25.2]} 20... c5 {[%clk
0:02:29.7]} 21. Qe2 {[%clk 0:02:17]} 21... Bxe5 {[%clk 0:02:19.9]} 22. fxe5
{[%clk 0:02:16.4]} 22... cxd4 {[%clk 0:02:09.5]} 23. exd4 {[%clk 0:02:16.2]}
23... Rc4 {[%clk 0:02:10.2]} 24. Rf6 {[%clk 0:02:06.1]} 24... Rxd4 {[%clk
0:02:05.1]} 25. Rxe6 {[%clk 0:01:51.7]} 25... Nc4 {[%clk 0:02:04.3]} 26. Qh5
{[%clk 0:00:51.2]} 26... Rc8 {[%clk 0:00:37.6]} 27. Re8 {[%clk 0:00:39.8]} 27...
Qd7 {[%clk 0:00:21.7]} 28. Rxc8+ {[%clk 0:00:31]} 28... Qxc8 {[%clk 0:00:22.6]}
29. Qxh6 {[%clk 0:00:25.7]} 29... Rd1+ {[%clk 0:00:15.6]} 30. Kc2 {[%clk
0:00:23.8]} 30... Ne3+ {[%clk 0:00:16.1]} 31. Kb3 {[%clk 0:00:23.3]} 31... Qc4+
{[%clk 0:00:16.9]} 32. Ka3 {[%clk 0:00:23.9]} 32... Nc2# {[%clk 0:00:17.6]} 0-1

[Event "Early-Titled-Tuesday-Blitz-October-17-2023"]
[Site "Chess.com"]
[Date "2023.10.17"]
[Round "5"]
[White "Mystery2007"]
[Black "Alphafischer2019"]
[Result "0-1"]
[WhiteElo "2454"]
[BlackElo "2599"]
[TimeControl "180+1"]
[EndTime "8:57:11 PDT"]
[Termination "Alphafischer2019 won by resignation"]

1. b3 {[%clk 0:03:00.9]} 1... Nf6 {[%clk 0:02:57.8]} 2. Bb2 {[%clk 0:03:01.4]}
2... g6 {[%clk 0:02:57.4]} 3. e4 {[%clk 0:03:01]} 3... Bg7 {[%clk 0:02:55.6]} 4.
e5 {[%clk 0:03:01.5]} 4... Nd5 {[%clk 0:02:54.4]} 5. d4 {[%clk 0:03:02.1]} 5...
d6 {[%clk 0:02:50.6]} 6. Nf3 {[%clk 0:03:01.9]} 6... O-O {[%clk 0:02:48.9]} 7.
h3 {[%clk 0:03:01.7]} 7... Nb6 {[%clk 0:02:47]} 8. Be2 {[%clk 0:02:54.8]} 8...
Nc6 {[%clk 0:02:44.8]} 9. O-O {[%clk 0:02:51.7]} 9... dxe5 {[%clk 0:02:38.1]}
10. dxe5 {[%clk 0:02:51.4]} 10... Qxd1 {[%clk 0:02:38]} 11. Rxd1 {[%clk
0:02:52]} 11... Bf5 {[%clk 0:02:38]} 12. Na3 {[%clk 0:02:48.1]} 12... a6 {[%clk
0:02:32.7]} 13. Bd3 {[%clk 0:02:28.9]} 13... Rfd8 {[%clk 0:02:24.2]} 14. Bxf5
{[%clk 0:02:10.8]} 14... gxf5 {[%clk 0:02:23.4]} 15. Kf1 {[%clk 0:02:10.4]}
15... Nd5 {[%clk 0:02:18.5]} 16. c4 {[%clk 0:01:48.2]} 16... Nf4 {[%clk
0:02:16.3]} 17. Bc3 {[%clk 0:01:15.7]} 17... Nd3 {[%clk 0:02:14.8]} 18. Rd2
{[%clk 0:00:51.5]} 18... Ndxe5 {[%clk 0:02:12.5]} 19. Nxe5 {[%clk 0:00:35.3]}
19... Bxe5 {[%clk 0:02:12.1]} 20. Rxd8+ {[%clk 0:00:31]} 20... Rxd8 {[%clk
0:02:13]} 21. Bxe5 {[%clk 0:00:31.3]} 21... Nxe5 {[%clk 0:02:13.4]} 22. Re1
{[%clk 0:00:31.7]} 22... Nc6 {[%clk 0:02:10]} 23. Ke2 {[%clk 0:00:28.4]} 23...
e6 {[%clk 0:02:08.2]} 24. Nc2 {[%clk 0:00:27.8]} 24... Kg7 {[%clk 0:02:05]} 25.
Rd1 {[%clk 0:00:25.1]} 25... Rxd1 {[%clk 0:02:04.1]} 26. Kxd1 {[%clk 0:00:26]}
26... f4 {[%clk 0:02:00.3]} 27. Ke2 {[%clk 0:00:25.3]} 27... Kf6 {[%clk
0:01:58.8]} 28. Kd3 {[%clk 0:00:20.4]} 28... Kf5 {[%clk 0:01:56.2]} 29. f3
{[%clk 0:00:19.1]} 29... b6 {[%clk 0:01:53.3]} 30. b4 {[%clk 0:00:19.2]} 30...
Ne5+ {[%clk 0:01:52.5]} 31. Kd4 {[%clk 0:00:18.6]} 31... Nc6+ {[%clk 0:01:42]}
32. Kd3 {[%clk 0:00:18.5]} 32... Ke5 {[%clk 0:01:37.6]} 33. b5 {[%clk
0:00:11.6]} 33... Nb8 {[%clk 0:01:37.6]} 34. Nb4 {[%clk 0:00:08.9]} 34... axb5
{[%clk 0:01:27.6]} 35. cxb5 {[%clk 0:00:08.9]} 35... Nd7 {[%clk 0:01:19.5]} 36.
Kc4 {[%clk 0:00:06.9]} 36... Kd6 {[%clk 0:01:18.8]} 37. Nd3 {[%clk 0:00:04.8]}
37... Ne5+ {[%clk 0:01:17.8]} 38. Nxe5 {[%clk 0:00:04.6]} 38... Kxe5 {[%clk
0:01:18.7]} 39. a4 {[%clk 0:00:05.2]} 39... h6 {[%clk 0:01:16.9]} 40. h4 {[%clk
0:00:04.9]} 40... h5 {[%clk 0:01:17.3]} 41. Kb4 {[%clk 0:00:03.1]} 41... Kd5
{[%clk 0:01:17.8]} 42. a5 {[%clk 0:00:03.2]} 42... bxa5+ {[%clk 0:01:16]} 43.
Kxa5 {[%clk 0:00:04.1]} 43... Kc5 {[%clk 0:01:13.6]} 44. Ka6 {[%clk 0:00:04.7]}
44... f5 {[%clk 0:01:13.6]} 45. Kb7 {[%clk 0:00:04.3]} 45... Kxb5 {[%clk
0:01:13.9]} 46. Kxc7 {[%clk 0:00:05]} 46... e5 {[%clk 0:01:14.7]} 47. Kd6 {[%clk
0:00:05.1]} 47... e4 {[%clk 0:01:15.2]} 0-1

[Event "Early-Titled-Tuesday-Blitz-October-17-2023"]
[Site "Chess.com"]
[Date "2023.10.17"]
[Round "5"]
[White "temiksmozg"]
[Black "slorovel"]
[Result "0-1"]
[WhiteElo "2584"]
[BlackElo "2476"]
[TimeControl "180+1"]
[EndTime "8:57:14 PDT"]
[Termination "slorovel won on time"]

1. e4 {[%clk 0:03:00.5]} 1... e6 {[%clk 0:02:07.8]} 2. d4 {[%clk 0:02:59.3]}
2... d5 {[%clk 0:02:07.5]} 3. Nc3 {[%clk 0:02:59.6]} 3... Nc6 {[%clk 0:02:07]}
4. Bb5 {[%clk 0:02:51.9]} 4... Bd7 {[%clk 0:02:06.8]} 5. exd5 {[%clk 0:02:49]}
5... exd5 {[%clk 0:02:06.8]} 6. Nxd5 {[%clk 0:02:47.8]} 6... Bd6 {[%clk
0:01:58.3]} 7. Qe2+ {[%clk 0:02:47.2]} 7... Nge7 {[%clk 0:01:57.8]} 8. Nxe7
{[%clk 0:02:34]} 8... Nxe7 {[%clk 0:01:57.3]} 9. Bxd7+ {[%clk 0:02:33.6]} 9...
Qxd7 {[%clk 0:01:58.2]} 10. Nf3 {[%clk 0:02:33.4]} 10... O-O-O {[%clk
0:01:58.1]} 11. O-O {[%clk 0:02:32.9]} 11... f6 {[%clk 0:01:56.2]} 12. Re1
{[%clk 0:02:30.3]} 12... Kb8 {[%clk 0:01:44.5]} 13. Qe6 {[%clk 0:02:27.9]} 13...
Qc6 {[%clk 0:01:44.7]} 14. c3 {[%clk 0:02:28.2]} 14... Rde8 {[%clk 0:01:43.2]}
15. Bd2 {[%clk 0:02:22.5]} 15... Nd5 {[%clk 0:01:41]} 16. Qg4 {[%clk 0:02:20.2]}
16... h5 {[%clk 0:01:39.2]} 17. Qg6 {[%clk 0:02:16.5]} 17... Ref8 {[%clk
0:01:31]} 18. Re2 {[%clk 0:01:54.3]} 18... h4 {[%clk 0:01:30.5]} 19. h3 {[%clk
0:01:51.2]} 19... Bf4 {[%clk 0:01:26.3]} 20. Qd3 {[%clk 0:01:36.8]} 20... Bxd2
{[%clk 0:01:25.6]} 21. Qxd2 {[%clk 0:01:36.7]} 21... g5 {[%clk 0:01:25.8]} 22.
Nh2 {[%clk 0:01:34]} 22... Nf4 {[%clk 0:01:24.8]} 23. f3 {[%clk 0:01:27.4]}
23... Nxe2+ {[%clk 0:01:24.7]} 24. Qxe2 {[%clk 0:01:28.3]} 24... Re8 {[%clk
0:01:25.1]} 25. Qf2 {[%clk 0:01:28.1]} 25... f5 {[%clk 0:01:25.3]} 26. Rd1
{[%clk 0:01:23.1]} 26... Qc4 {[%clk 0:01:15.8]} 27. Qc2 {[%clk 0:00:57.5]} 27...
Rhf8 {[%clk 0:01:11.8]} 28. b3 {[%clk 0:00:54]} 28... Qe2 {[%clk 0:01:11.7]} 29.
Rd2 {[%clk 0:00:49.7]} 29... Qe1+ {[%clk 0:01:11.4]} 30. Nf1 {[%clk 0:00:49.6]}
30... g4 {[%clk 0:01:10.2]} 31. Rd1 {[%clk 0:00:48.2]} 31... Qe6 {[%clk
0:01:07.3]} 32. d5 {[%clk 0:00:37.9]} 32... Qb6+ {[%clk 0:01:05.7]} 33. Qf2
{[%clk 0:00:36.7]} 33... Qxf2+ {[%clk 0:00:56.5]} 34. Kxf2 {[%clk 0:00:37.6]}
34... g3+ {[%clk 0:00:56.8]} 35. Kg1 {[%clk 0:00:35.2]} 35... Re2 {[%clk
0:00:57.4]} 36. Rd4 {[%clk 0:00:30.6]} 36... Rfe8 {[%clk 0:00:55.2]} 37. Rxh4
{[%clk 0:00:30]} 37... Re1 {[%clk 0:00:51.7]} 38. Rh5 {[%clk 0:00:12.5]} 38...
a5 {[%clk 0:00:51.4]} 39. Rxf5 {[%clk 0:00:12.2]} 39... Rd1 {[%clk 0:00:50.6]}
0-1

[Event "Early-Titled-Tuesday-Blitz-October-17-2023"]
[Site "Chess.com"]
[Date "2023.10.17"]
[Round "5"]
[White "secretsuperstar7"]
[Black "Payyappat"]
[Result "1-0"]
[WhiteElo "2455"]
[BlackElo "2463"]
[TimeControl "180+1"]
[EndTime "8:57:18 PDT"]
[Termination "secretsuperstar7 won on time"]

1. c4 {[%clk 0:03:00.9]} 1... c5 {[%clk 0:02:59.4]} 2. Nc3 {[%clk 0:03:00.4]}
2... Nc6 {[%clk 0:02:58.9]} 3. g3 {[%clk 0:02:59.8]} 3... Nf6 {[%clk 0:02:58.9]}
4. Bg2 {[%clk 0:03:00]} 4... g6 {[%clk 0:02:59.2]} 5. Nf3 {[%clk 0:03:00]} 5...
Bg7 {[%clk 0:02:59.9]} 6. O-O {[%clk 0:03:00.1]} 6... O-O {[%clk 0:02:59.1]} 7.
a3 {[%clk 0:03:00.2]} 7... d5 {[%clk 0:02:59.1]} 8. cxd5 {[%clk 0:02:51.2]} 8...
Nxd5 {[%clk 0:03:00]} 9. Nxd5 {[%clk 0:02:45.2]} 9... Qxd5 {[%clk 0:02:58.4]}
10. d3 {[%clk 0:02:45.3]} 10... Bg4 {[%clk 0:02:53.5]} 11. Ng5 {[%clk
0:02:36.2]} 11... Qd7 {[%clk 0:02:32.4]} 12. Ne4 {[%clk 0:02:35.2]} 12... Nd4
{[%clk 0:02:04.7]} 13. f3 {[%clk 0:02:29.5]} 13... Bf5 {[%clk 0:02:03.6]} 14.
Nxc5 {[%clk 0:02:22.2]} 14... Qb5 {[%clk 0:01:58.6]} 15. Ne4 {[%clk 0:02:19.7]}
15... Nb3 {[%clk 0:01:42.1]} 16. Rb1 {[%clk 0:02:16.3]} 16... Qb6+ {[%clk
0:01:41.1]} 17. Kh1 {[%clk 0:02:14.9]} 17... Rfd8 {[%clk 0:01:37]} 18. Nc3
{[%clk 0:02:05.6]} 18... Rac8 {[%clk 0:01:35.5]} 19. a4 {[%clk 0:01:52]} 19...
Qb4 {[%clk 0:00:56.9]} 20. Bg5 {[%clk 0:01:43.5]} 20... Rc6 {[%clk 0:00:38.5]}
21. Re1 {[%clk 0:01:32.1]} 21... Rcd6 {[%clk 0:00:25.2]} 22. Bxe7 {[%clk
0:01:30.3]} 22... Nc5 {[%clk 0:00:14.5]} 23. Bxd6 {[%clk 0:01:26]} 23... Rxd6
{[%clk 0:00:14.2]} 24. Nb5 {[%clk 0:01:16.4]} 24... Rd7 {[%clk 0:00:08.9]} 25.
Nc3 {[%clk 0:01:09.8]} 25... Bxc3 {[%clk 0:00:04.5]} 26. bxc3 {[%clk 0:01:09.6]}
26... Qxc3 {[%clk 0:00:05.4]} 27. Rc1 {[%clk 0:01:07.5]} 27... Qa5 {[%clk
0:00:05]} 28. Qc2 {[%clk 0:01:04.8]} 28... Nxa4 {[%clk 0:00:03.5]} 29. Qc8+
{[%clk 0:00:56.5]} 29... Kg7 {[%clk 0:00:03.3]} 30. Qc2 {[%clk 0:00:45.6]} 30...
Be6 {[%clk 0:00:01.4]} 31. e4 {[%clk 0:00:41.7]} 31... b5 {[%clk 0:00:01.3]} 32.
f4 {[%clk 0:00:38.6]} 32... b4 {[%clk 0:00:01.4]} 33. Qf2 {[%clk 0:00:28.8]} 1-0

[Event "Early-Titled-Tuesday-Blitz-October-17-2023"]
[Site "Chess.com"]
[Date "2023.10.17"]
[Round "5"]
[White "Karttunen"]
[Black "Kotofeyca"]
[Result "1-0"]
[WhiteElo "2573"]
[BlackElo "2437"]
[TimeControl "180+1"]
[EndTime "8:57:23 PDT"]
[Termination "Karttunen won by resignation"]

1. c4 {[%clk 0:03:00.9]} 1... c6 {[%clk 0:02:59]} 2. Nf3 {[%clk 0:02:58.2]} 2...
d5 {[%clk 0:02:58.9]} 3. e3 {[%clk 0:02:58]} 3... Nf6 {[%clk 0:02:59.2]} 4. b3
{[%clk 0:02:55.1]} 4... Bg4 {[%clk 0:02:58.4]} 5. Bb2 {[%clk 0:02:51.1]} 5...
Nbd7 {[%clk 0:02:57.1]} 6. h3 {[%clk 0:02:50.7]} 6... Bh5 {[%clk 0:02:56.5]} 7.
Be2 {[%clk 0:02:29.2]} 7... e6 {[%clk 0:02:54.7]} 8. g4 {[%clk 0:02:14.7]} 8...
Bg6 {[%clk 0:02:53.2]} 9. g5 {[%clk 0:02:03.7]} 9... Ne4 {[%clk 0:02:40.1]} 10.
h4 {[%clk 0:01:56.9]} 10... Bh5 {[%clk 0:02:36.6]} 11. d3 {[%clk 0:01:50.6]}
11... Bb4+ {[%clk 0:02:30.7]} 12. Kf1 {[%clk 0:01:50.5]} 12... Nd6 {[%clk
0:01:52.6]} 13. Bxg7 {[%clk 0:01:39.5]} 13... Rg8 {[%clk 0:01:52.6]} 14. Bb2
{[%clk 0:01:34.8]} 14... Qe7 {[%clk 0:01:40.5]} 15. a3 {[%clk 0:01:19.4]} 15...
Ba5 {[%clk 0:01:39.8]} 16. Ne5 {[%clk 0:01:18.5]} 16... Bxe2+ {[%clk 0:01:38.4]}
17. Qxe2 {[%clk 0:01:18.8]} 17... O-O-O {[%clk 0:01:28.8]} 18. Qh5 {[%clk
0:00:54.7]} 18... f5 {[%clk 0:00:55.6]} 19. b4 {[%clk 0:00:36.6]} 19... Bc7
{[%clk 0:00:53.2]} 20. Nxd7 {[%clk 0:00:32.4]} 20... Qxd7 {[%clk 0:00:48.3]} 21.
Bf6 {[%clk 0:00:32.1]} 21... Rdf8 {[%clk 0:00:43.2]} 22. c5 {[%clk 0:00:30.5]}
22... Ne8 {[%clk 0:00:41.1]} 23. Bb2 {[%clk 0:00:29.1]} 23... f4 {[%clk
0:00:40]} 24. Ke2 {[%clk 0:00:25.4]} 24... fxe3 {[%clk 0:00:35.3]} 25. fxe3
{[%clk 0:00:25.6]} 25... Bg3 {[%clk 0:00:24.5]} 26. Nd2 {[%clk 0:00:25.5]} 26...
Rf2+ {[%clk 0:00:22.3]} 27. Kd1 {[%clk 0:00:25.7]} 27... e5 {[%clk 0:00:17]} 28.
Kc2 {[%clk 0:00:24]} 28... d4 {[%clk 0:00:16.2]} 29. exd4 {[%clk 0:00:19.3]}
29... exd4 {[%clk 0:00:15.5]} 30. Raf1 {[%clk 0:00:18.9]} 30... Rgf8 {[%clk
0:00:14.8]} 31. Rxf2 {[%clk 0:00:18.2]} 31... Rxf2 {[%clk 0:00:15.7]} 32. Rf1
{[%clk 0:00:18.7]} 32... Re2 {[%clk 0:00:15.8]} 33. Qxe2 {[%clk 0:00:17.7]}
33... Bxh4 {[%clk 0:00:15.1]} 34. Rf8 {[%clk 0:00:17.4]} 34... Bxg5 {[%clk
0:00:14.6]} 35. Qxe8+ {[%clk 0:00:16.5]} 1-0